{"text_format":"1","workbook":"xlsx","n_sheets":2,"sheets":["Сведения по объему забора","Лист1"],"not_rendered":{"charts":0,"images":0,"macros":1,"external_links":0,"defined_names":10,"comments":0,"pivot_tables":0},"unopened":[],"bounds":{"document_bytes":16777216,"sheet_cells":100000,"rows_first":2000,"rows_last":500,"rows_between":2000,"halvings":0,"cell_chars":16384,"cell_head_chars":4096},"cells_cut":0,"cells_raw":0,"read":"whole","date_system":"1900"}

{"sheet":"Сведения по объему забора","index":0,"n_rows":42,"n_cols":17,"rows_kept":42,"cut":false,"hidden":false,"merged":[[0,0,0,13],[17,1,17,3],[19,5,19,7],[19,8,19,10],[17,5,18,10],[17,13,18,16],[18,1,21,1],[17,0,21,0],[19,13,21,13],[19,14,21,16],[18,2,21,2],[18,3,21,3],[17,4,21,4],[17,11,21,11],[17,12,21,12]]}
["Сведения, полученные в результате учета объема забора (изъятия) водных ресурсов из водных объектов за __ квартал ___ г"]
["За период"]
["ЮР или ФИЗ лицо"]
["Наименование организации"]
["Почтовый адрес организации"]
["Организационно-правовая форма организации"]
["ИНН организации"]
["КПП организации"]
["Бассейновый округ"]
["Наименование субъекта Российской Федерации"]
["Наименование и код гидрографической единицы"]
["Водохозяйственный участок и его код"]
["Реквизиты документа, в соответствии с которым установлено право на забор (изъятие) водных ресурсов"]
["Марка прибора водоучета"]
["Дата последней поверки"]
["Периодичность поверки"]
[]
["Наименование водного объекта-водоисточника","Коды",null,null,"Номер водозабора","Координаты водозабора",null,null,null,null,null,"Цель водопользования","Объем допустимого забора, тыс. м3","Фактический объем забора, тыс. м3"]
[null,"вида водного объекта-водоисточника","водного объекта - водоисточника","категории качества воды"]
[null,null,null,null,null,"с. Широты",null,null,"в. Долготы",null,null,null,null,"всего","в том числе по месяцам квартала"]
[null,null,null,null,null,"град.","мин.","сек.","град.","мин.","сек."]
[null,null,null,null,null,"град.","мин.","сек.","град.","мин.","сек."]
[null,null,null,null,null,0,0,0,0,0,0,null,0,{"$f":"O23+P23+Q23","v":0},0,0,0]
[null,null,null,null,null,0,0,0,0,0,0,null,0,0,0,0,0]
[null,null,null,null,null,0,0,0,0,0,0,null,0,0,0,0,0]
[null,null,null,null,null,0,0,0,0,0,0,null,0,0,0,0,0]
[null,null,null,null,null,0,0,0,0,0,0,null,0,0,0,0,0]
[null,null,null,null,null,0,0,0,0,0,0,null,0,0,0,0,0]
[null,null,null,null,null,0,0,0,0,0,0,null,0,0,0,0,0]
[null,null,null,null,null,0,0,0,0,0,0,null,0,0,0,0,0]
[null,null,null,null,null,0,0,0,0,0,0,null,0,0,0,0,0]
[null,null,null,null,null,0,0,0,0,0,0,null,0,0,0,0,0]
[null,null,null,null,null,0,0,0,0,0,0,null,0,0,0,0,0]
[null,null,null,null,null,0,0,0,0,0,0,null,0,0,0,0,0]
[null,null,null,null,null,0,0,0,0,0,0,null,0,0,0,0,0]
[null,null,null,null,null,0,0,0,0,0,0,null,0,0,0,0,0]
[null,null,null,null,null,0,0,0,0,0,0,null,0,0,0,0,0]
[null,null,null,null,null,0,0,0,0,0,0,null,0,0,0,0,0]
[null,null,null,null,null,0,0,0,0,0,0,null,0,0,0,0,0]
[null,null,null,null,null,0,0,0,0,0,0,null,0,0,0,0,0]
[null,null,null,null,null,0,0,0,0,0,0,null,0,0,0,0,0]
[null,null,null,null,null,0,0,0,0,0,0,null,0,0,0,0,0]

{"sheet":"Лист1","index":1,"n_rows":620,"n_cols":17,"rows_kept":620,"cut":false,"hidden":true,"merged":[[0,2,0,3],[0,6,0,7],[0,8,0,9],[0,10,0,11]]}
["ЮР или ФИЗ лицо","Бассейновый округ","Наименование и код гидрографической единицы",null,"Водохозяйственный участок и его код","00.00.00.000","Код вида водного объекта-водоисточника",null,"Код категории качества воды",null,"Коды вида водного объекта-водоприемника",null,"За период","Цель водопользования","Субъект РФ","Код","Наименование"]
["Юр. лицо","Балтийский",1,"01.01.00","Неман","01.01.00.001","Море",10,"Забранная из природных водных объектов (кроме морей), в том числе после водоподготовки","ПО","Море",10,"2013-03-31","1.1. забор (изъятие) водных ресурсов из водных объектов, тыс.куб.м.","Агинский Бурятский автономный округ",10000,"ОРГАНИЗАЦИОННО-ПРАВОВЫЕ ФОРМЫ ЮРИДИЧЕСКИХ ЛИЦ, ЯВЛЯЮЩИХСЯ КОММЕРЧЕСКИМИ ОРГАНИЗАЦИЯМИ"]
["Физ. лицо","Баренцево-Беломорский","Западная Двина (российская часть бассейна)","01.02.00","Преголя","01.01.00.002","Река",20,"Полученная и (или) переданная из систем водоснабжения коммунального назначения","ПК","Река",20,"2013-06-30","1.2. забор морской воды, тыс.куб.м","Алтайский край",11000,"Хозяйственные товарищества"]
[null,"Двинско-Печорский","Нарва (российская часть бассейна)","01.03.00","Реки бассейна Балтийского моря в Калининградской обл. без рр. Неман и Преголя ","01.01.00.003","Река пересыхающая",21,"Полученная и (или) переданная из прочих систем водоснабжения","ПД","Река пересыхающая",21,"2013-09-30","1.3. забор воды из водных объектов для водоснабжения населения, тыс.куб.м.","Амурская область",11051,"Полные товарищества"]
[null,"Днепровский","Нева (включая бассейны рек Онежского и Ладожского озера)","01.04.00","Дрисса и Полота","01.02.00.001","Озеро",30,"Забранная из природных водных объектов (кроме морей)","ТН","Озеро",30,"2013-12-31",null,"Архангельская область",11064,"Товарищества на вере (коммандитные товарищества)"]
[null,"Донской","Свирь (включая реки бассейна Онежского озера)","01.04.01","Западная Двина","01.02.00.002","Болото",31,"Полученная и (или) переданная из систем водоснабжения (водообеспечения, обводнения)","ТД","Болото",31,"2014-03-31",null,"Астраханская область",12000,"Хозяйственные общества"]
[null,"Кубанский","Волхов (российская часть бассейна)","01.04.02","Межа","01.02.00.003","Водохранилище русловое, пруд русловой",40,"Переданная для перераспределения (переброски) стока","ТР","Водохранилище русловое, пруд русловой",40,"2014-06-30",null,"Белгородская область",12100,"Общества с ограниченной или дополнительной ответственностью"]
[null,"Западно-Каспийский","Нева и реки бассейна Ладожского озера (без 01.04.01 и 01.04.02, российская часть бассейнов)","01.04.03","Западная Двина без бассейнов рек Дрисса, Полота и Межа","01.02.00.004","Водохранилище наливное, пруд наливной",41,"Переданная для пополнения запасов подземных вод","ТП","Водохранилище наливное, пруд наливной",41,"2014-09-30",null,"Брянская область",12165,"Общества с ограниченной ответственностью"]
[null,"Верхневолжский","Реки Карелии бассейна Балтийского моря (российская часть бассейнов)","01.05.00","Великая ","01.03.00.001","Канал комплексного назначения",50,"Из морей","МР","Канал комплексного назначения",50,"2014-12-31",null,"Владимирская область",12166,"Общества с дополнительной ответственностью"]
[null,"Окский","Бассейны рек Кольского полуострова, впадающих в Баренцево море (российская часть бассейнов)","02.01.00","Великая ","01.03.00.002","Подземный водный объект",60,"В системах водоотведения коммунального назначения","СК","Подземный водный объект",60,"2015-03-31",null,"Волгоградская область",12200,"Акционерные общества"]
[null,"Камский","Бассейны рек Кольского полуострова и Карелии, впадающих в Белое море (российская часть бассейнов)","02.02.00","Водные объекты бассейна оз. Чудско-Псковское от границы РФ с Эстонией без р. Великая","01.03.00.003","Шахта, рудник, нефтепромысел, карьер",61,"В прочих системах водоотведения","СД","Шахта, рудник, нефтепромысел, карьер",61,"2015-06-30",null,"Вологодская область",12247,"Открытые акционерные общества"]
[null,"Нижневолжский","Онега","03.01.00","Нарва","01.03.00.004","Скважина вертикального дренажа для понижения уровня грунтовых вод",62,"Вода сточная транзитная","СТ","Скважина вертикального дренажа для понижения уровня грунтовых вод",62,"2015-09-30",null,"Воронежская область",12267,"Закрытые акционерные общества"]
[null,"Уральский","Северная Двина","03.02.00","Луга","01.03.00.005","Коллектор оросительной системы",71,"Минеральная","МН","Коллектор оросительной системы",71,"2015-12-31",null,"Г. Москва",13000,"Хозяйственные партнерства"]
[null,"Верхнеобский","Малая Северная Двина","03.02.01","Луга и водные объекты на полуострове Кургальский ","01.03.00.006","Земледельческие поля орошения (ЗПО)",80,"Термальная","ТМ","Земледельческие поля орошения (ЗПО)",80,"2016-03-31",null,"Г. Санкт-Петербург",14000,"Производственные кооперативы (артели)"]
[null,"Иртышский","Вычегда","03.02.02","Реки бассейна Финского залива от северной границы бассейна р. Луга до южной границы бассейна  р. Нева","01.03.00.007","Накопители",81,"Сбросная с рыбоводных прудов","РВ","Накопители",81,"2016-06-30",null,"Еврейская автономная область",14100,"Сельскохозяйственные производственные кооперативы"]
[null,"Нижнеобский","Северная Двина ниже места слияния Вычегды и Малой Северной Двины","03.02.03","Шуя ","01.04.01.001","Рельеф местности",82,"Коллекторно-дренажная","КД","Рельеф местности",82,"2016-09-30",null,"Забайкальский край ",14153,"Сельскохозяйственные артели (колхозы)"]
[null,"Ангаро-Байкальский","Мезень","03.03.00","Суна включая Пальеозерское и Сандальское в-ща","01.04.01.002","Поля фильтрации",83,"Сбросная с рисовых систем","РС","Поля фильтрации",83,"2016-12-31",null,"Ивановская область",14154,"Рыболовецкие артели (колхозы)"]
[null,"Енисейский","Бассейны рек Баренцева моря междуречья Печоры и Мезени","03.04.00","Водла, оз. Водлозеро","01.04.01.003","Сеть канализации",91,"Карьерная","КР","Сеть канализации",91,"2017-03-31",null,"Иркутская область",14155,"Кооперативные хозяйства (коопхозы)"]
[null,"Ленский","Печора","03.05.00","Водла","01.04.01.004","Ливневой коллектор",99,"Шахтно-рудничная","ШР","Ливневой коллектор",99,"2017-06-30",null,"Кабардино-Балкарская Республика",14200,"Производственные кооперативы (кроме сельскохозяйственных производственных кооперативов)"]
[null,"Анадыро-Колымский","Печора до впадения Усы","03.05.01","Вытегра","01.04.01.005",null,null,"Балластная, льяльная","БЛ",null,null,"2017-09-30",null,"Калининградская область",15000,"Унитарные предприятия"]
[null,"Амурский","Уса","03.05.02","Водные объекты бассейна Онежского озера без рр. Шуя, Суна, Водла и Вытегра","01.04.01.006",null,null,"Ливневая","ЛВ",null,null,"2017-12-31",null,"Калужская область",15100,"Унитарные предприятия, основанные на праве оперативного управления (казенные предприятия)"]
[null,null,"Печора ниже впадения Усы","03.05.03","Свирь без бассейна Онежского озера","01.04.01.007",null,null,null,null,null,null,"2018-03-31",null,"Камчатская область",15141,"Федеральные казенные предприятия"]
[null,null,"Бассейны рек Баренцева моря междуречья Печоры и Оби","03.06.00","Свирь","01.04.01.008",null,null,null,null,null,null,"2018-06-30",null,"Камчатский край",15142,"Казенные предприятия субъектов Российской Федерации"]
[null,null,"Бассейны рек о.Новая Земля","03.07.00","Шлина","01.04.02.001",null,null,null,null,null,null,"2018-09-30",null,"Карачаево-Черкесская Республика",15143,"Муниципальные казенные предприятия"]
[null,null,"Днепр (российская часть бассейна)","04.01.00","Мста без р. Шлина от истока до Вышневолоцкого г/у","01.04.02.002",null,null,null,null,null,null,"2018-12-31",null,"Кемеровская область",15200,"Унитарные предприятия, основанные на праве хозяйственного ведения"]
[null,null,"Дон (российская часть бассейна)","05.01.00","Ловать и Пола","01.04.02.003",null,null,null,null,null,null,"2019-03-31",null,"Кировская область",15241,"Федеральные государственные унитарные предприятия"]
[null,null,"Дон до впадения Хопра","05.01.01","Шелонь","01.04.02.004",null,null,null,null,null,null,"2019-06-30",null,"Коми Пермяцкий автономный округ",15242,"Государственные унитарные предприятия субъектов Российской Федерации"]
[null,null,"Хопер","05.01.02","Водные объекты бассейна оз. Ильмень без рр. Мста, Ловать, Пола и Шелонь","01.04.02.005",null,null,null,null,null,null,"2019-09-30",null,"Корякский автономный округ",15243,"Муниципальные унитарные предприятия"]
[null,null,"Дон между впадением Хопра и Северского Донца","05.01.03","Волхов","01.04.02.006",null,null,null,null,null,null,"2019-12-31",null,"Костромская область",19000,"Прочие юридические лица, являющиеся коммерческими организациями"]
[null,null,"Северский Донец (российская часть бассейна)","05.01.04","Сясь","01.04.03.001",null,null,null,null,null,null,"2020-03-31",null,"Краснодарский край",20000,"ОРГАНИЗАЦИОННО-ПРАВОВЫЕ ФОРМЫ ЮРИДИЧЕСКИХ ЛИЦ, ЯВЛЯЮЩИХСЯ НЕКОММЕРЧЕСКИМИ ОРГАНИЗАЦИЯМИ"]
[null,null,"Дон ниже впадения Северского Донца","05.01.05","Водные объекты бассейна оз. Ладожское без рр. Волхов, Свирь и Сясь","01.04.03.002",null,null,null,null,null,null,"2020-06-30",null,"Красноярский край",20100,"Потребительские кооперативы"]
[null,null,"Реки бассейна Азовского моря междуречья Кубани и Дона","06.01.00","Нева","01.04.03.003",null,null,null,null,null,null,"2020-09-30",null,"Курганская область",20101,"Гаражные и гаражно-строительные кооперативы"]
[null,null,"Кубань","06.02.00","Нева","01.04.03.004",null,null,null,null,null,null,"2020-12-31",null,"Курская область",20102,"Жилищные и жилищно-строительные кооперативы"]
[null,null,"Реки бассейна Черного моря","06.03.00","Реки и озера басейна Финского залива от границы РФ с Финляндией до северной границы дельты р. Нева","01.04.03.005",null,null,null,null,null,null,null,null,"Ленинградская область",20103,"Жилищные накопительные кооперативы"]
[null,null,"Реки бассейна Каспийского моря междуречья Терека и Волги","07.01.00","Реки Карелии бассейна Балтийского моря на границе РФ с Финляндией, включая оз. Лексозеро","01.05.00.001",null,null,null,null,null,null,null,null,"Липецкая область",20104,"Кредитные потребительские кооперативы"]
[null,null,"Терек (российская часть бассейна)","07.02.00","Реки бассейна Баренцева моря от р. Патсо-Йоки (Паз) до западной границы бассейна р. Печенга","02.01.00.001",null,null,null,null,null,null,null,null,"Магаданская область",20105,"Кредитные потребительские  кооперативы граждан"]
[null,null,"Реки бассейна Каспийского моря на юг от бассейна Терека до Государственной границы РФ (российская часть бассейнов)","07.03.00","Печенга ","02.01.00.002",null,null,null,null,null,null,null,null,"Московская область",20106,"Кредитные кооперативы второго уровня"]
[null,null,"Бессточные районы междуречья Терека, Дона и Волги","07.04.00","Тулома вкл. оз. Нот-озеро ","02.01.00.003",null,null,null,null,null,null,null,null,"Мурманская область",20107,"Потребительские общества"]
[null,null,"(Верхняя) Волга до Куйбышевского водохранилища (без бассейна Оки)","08.01.00","Тулома","02.01.00.004",null,null,null,null,null,null,null,null,"Ненецкий автономный округ",20109,"Сельскохозяйственные потребительские перерабатывающие  кооперативы"]
[null,null,"Волга до Рыбинского водохранилища","08.01.01","Кола, вкл. оз. Кол-озеро","02.01.00.005",null,null,null,null,null,null,null,null,"Нижегородская область",20110,"Сельскохозяйственные потребительские сбытовые (торговые) кооперативы"]
[null,null,"Реки бассейна Рыбинского водохранилища","08.01.02","Реки бассейна Баренцева моря от восточной границы р. Печенга до западной границы бассейна р. Воронья без рр. Тулома и Кола","02.01.00.006",null,null,null,null,null,null,null,null,"Новгородская область",20111,"Сельскохозяйственные потребительские обслуживающие кооперативы"]
[null,null,"Волга ниже Рыбинского водохранилища до впадения Оки","08.01.03","Воронья, вкл. оз. Ловозеро","02.01.00.007",null,null,null,null,null,null,null,null,"Новосибирская область",20112,"Сельскохозяйственные потребительские снабженческие кооперативы"]
[null,null,"Волга от впадения Оки до Куйбышевского водохранилища (без бассейна Суры)","08.01.04","Воронья","02.01.00.008",null,null,null,null,null,null,null,null,"Омская область",20113,"Сельскохозяйственные потребительские садоводческие кооперативы"]
[null,null,"Сура","08.01.05","Реки бассейна Баренцева моря от восточной границы бассейна р. Воронья до западной границы бассейна р. Иоканга (мыс Святой Нос) ","02.01.00.009",null,null,null,null,null,null,null,null,"Оренбургская область",20114,"Сельскохозяйственные потребительские огороднические кооперативы"]
[null,null,"Бассейны притоков Волги на участке между впадением Суры до Куйбышевского водохранилища","08.01.06","Острова Баренцева моря в пределах внутренних морских вод и территориального моря РФ, прилегающего к береговой линии гидрографической единицы 02.01.00 ","02.01.00.100",null,null,null,null,null,null,null,null,"Орловская область",20115,"Сельскохозяйственные потребительские животноводческие кооперативы"]
[null,null,"Ока","09.01.00","Поной ","02.02.00.001",null,null,null,null,null,null,null,null,"Пензенская область",20200,"Общественные  организации (объединения)"]
[null,null,"Бассейны притоков Оки до впадения р. Мокша","09.01.01","Реки бассейна Белого моря от западной границы бассейна р. Иоканга (мыс Святой Нос) до восточной границы бассейна р. Нива без р. Поной","02.02.00.002",null,null,null,null,null,null,null,null,"Пермский край",20201,"Политические партии"]
[null,null,"Мокша","09.01.02","Нива вкл. оз. Имандра","02.02.00.003",null,null,null,null,null,null,null,null,"Приморский край",20202,"Профсоюзные организации"]
[null,null,"Ока ниже впадения р. Мокша","09.01.03","Ковда, вкл. оз. Пя-озеро, Топ-озеро","02.02.00.004",null,null,null,null,null,null,null,null,"Псковская область",20210,"Общественные движения"]
[null,null,"Кама","10.01.00","Ковда, оз. Суш-озеро","02.02.00.005",null,null,null,null,null,null,null,null,"Республика Адыгея (Адыгея)",20211,"Органы общественной самодеятельности"]
[null,null,"Кама до Куйбышевского водохранилища (без бассейнов рек Белой и Вятки)","10.01.01","Ковда вкл. оз. Ковд-озеро","02.02.00.006",null,null,null,null,null,null,null,null,"Республика Алтай",20300,"Религиозные организации"]
[null,null,"Белая","10.01.02","Реки бассейна Белого моря от западной границы бассейна р. Нива до северной границы бассейна р. Кемь без р. Ковда  ","02.02.00.007",null,null,null,null,null,null,null,null,"Республика Башкортостан",20400,"Фонды"]
[null,null,"Вятка","10.01.03","Кемь, вкл. оз. Верхнее, Среднее и Нижнее Куйто","02.02.00.008",null,null,null,null,null,null,null,null,"Республика Бурятия",20401,"Благотворительные фонды"]
[null,null,"Бассейны малых и средних притоков Камы на участке между впадением Белой до Куйбышевского водохранилища","10.01.04","Кемь","02.02.00.009",null,null,null,null,null,null,null,null,"Республика Дагестан",20402,"Негосударственные пенсионные фонды"]
[null,null,"Волга от верховий Куйбышевского водохранилища до впадения в Каспийское море","11.01.00","Кемь","02.02.00.010",null,null,null,null,null,null,null,null,"Республика Ингушетия",20403,"Общественные фонды"]
[null,null,"Урал (российская часть бассейна)","12.01.00","Сегежа, вкл. оз. Сег-озеро","02.02.00.011",null,null,null,null,null,null,null,null,"Республика Калмыкия",20404,"Экологические фонды"]
[null,null,"Большой и Малый Узень (российская часть бассейна)","12.02.00","Бассейн оз. Выг-озеро до Выгозерского г/у без р. Сегежа до Сегозерского г/у","02.02.00.012",null,null,null,null,null,null,null,null,"Республика Карелия",20500,"Некоммерческие партнерства"]
[null,null,"(Верхняя) Обь до впадения Иртыша.","13.01.00","Нижний Выг","02.02.00.013",null,null,null,null,null,null,null,null,"Республика Коми",20600,"Объединения юридических лиц"]
[null,null,"Бия и Катунь","13.01.01","Реки бассейна Онежской губы от южной границы бассейна р. Кемь до западной границы бассейна р. Унежма без р. Нижний Выг  ","02.02.00.014",null,null,null,null,null,null,null,null,"Республика Марий Эл",20601,"Ассоциации (союзы) экономического взаимодействия субъектов Российской Федерации"]
[null,null,"Обь до впадения Чулыма (без Томи)","13.01.02","Острова Белого моря в пределах внутренних морских вод и территориального моря РФ, прилегающего к береговой линии гидрографической единицы 02.02.00 ","02.02.00.100",null,null,null,null,null,null,null,null,"Республика Мордовия",20603,"Советы муниципальных образований субъектов Российской Федерации"]
[null,null,"Томь","13.01.03","Тенниё-йоки (росийская часть бассейна)","02.02.00.200",null,null,null,null,null,null,null,null,"Республика Саха (Якутия)",20604,"Союзы (ассоциации) кредитных кооперативов"]
[null,null,"Чулым","13.01.04","р. Онега ","03.01.00.001",null,null,null,null,null,null,null,null,"Республика Северная Осетия - Алания",20605,"Союзы (ассоциации) кооперативов"]
[null,null,"Обь на участке от Чулыма до Кети","13.01.05","Реки бассейна Онежской губы от западной границы бассейна р. Унежма до северо-восточной границы бассейна р. Золотица без р. Онега","03.01.00.002",null,null,null,null,null,null,null,null,"Республика Татарстан (Татарстан)",20606,"Союзы (ассоциации) общественных объединений"]
[null,null,"Кеть","13.01.06","Водные объекты островов Белого моря в пределах внутренних морских вод и территориального моря РФ, прилегающего к береговой линии гидрографической един","03.01.00.100",null,null,null,null,null,null,null,null,"Республика Тыва",20607,"Союзы (ассоциации) общин малочисленных народов"]
[null,null,"Обь на участке от Кети до Васюгана","13.01.07","оз. Кубенское и р.Сухона  ","03.02.01.001",null,null,null,null,null,null,null,null,"Республика Хакасия",20608,"Союзы потребительских обществ"]
[null,null,"Васюган","13.01.08","Юг","03.02.01.002",null,null,null,null,null,null,null,null,"Ростовская область",20800,"Палаты"]
[null,null,"Обь на участке от Васюгана до Ваха","13.01.09","(Малая) Северная Двина без рр. Юг и Сухона до Кубенского г/у","03.02.01.003",null,null,null,null,null,null,null,null,"Рязанская область",20801,"Адвокатские палаты"]
[null,null,"Вах","13.01.10","Вычегда","03.02.02.001",null,null,null,null,null,null,null,null,"Самарская область",20802,"Нотариальные палаты"]
[null,null,"Обь ниже Ваха до впадения Иртыша","13.01.11","Вычегда","03.02.02.002",null,null,null,null,null,null,null,null,"Саратовская область",20803,"Торгово-промышленные палаты"]
[null,null,"Бессточная область междуречья Оби и Иртыша","13.02.00","Северная Двина","03.02.03.001",null,null,null,null,null,null,null,null,"Сахалинская область",20900,"Учреждения"]
[null,null,"Иртыш (российская часть бассейна).","14.01.00","Вага ","03.02.03.002",null,null,null,null,null,null,null,null,"Свердловская область",20901,"Автономные учреждения"]
[null,null,"Иртыш до впадения Ишима (российская часть бассейна)","14.01.01","Пинега","03.02.03.003",null,null,null,null,null,null,null,null,"Смоленская область",20902,"Благотворительные учреждения"]
[null,null,"Омь","14.01.02","Северная Двина  без р.Пинега","03.02.03.004",null,null,null,null,null,null,null,null,"Ставропольский край",20903,"Бюджетные учреждения"]
[null,null,"Ишим (российская часть бассейна).","14.01.03","Реки бассейна Белого моря от северо-восточной границы р. Золотица до мыса Воронов, исключая р. Северная Двина","03.02.03.005",null,null,null,null,null,null,null,null,"Таймырский автономный округ ",20904,"Казенные учреждения"]
[null,null,"Иртыш на участке от Ишима до Тобола","14.01.04","Водные объекты островов Белого моря в пределах внутренних морских вод и территориального моря РФ, прилегающего к береговой линии гидрографической един","03.02.03.100",null,null,null,null,null,null,null,null,"Тамбовская область",20905,"Общественные учреждения"]
[null,null,"Тобол (российская часть бассейна).","14.01.05","Мезень","03.03.00.001",null,null,null,null,null,null,null,null,"Тверская область",20906,"Частные учреждения"]
[null,null,"Конда","14.01.06","Мезень","03.03.00.002",null,null,null,null,null,null,null,null,"Томская область",20907,"Учреждения академий наук"]
[null,null,"Иртыш на участке от Тобола до Оби","14.01.07","Реки бассейна Белого моря от мыса Воронов до мыса Канин Нос без р. Мезень  ","03.03.00.003",null,null,null,null,null,null,null,null,"Тульская область",20908,"Учреждения религиозных организаций"]
[null,null,"Бессточная область междуречья Оби и Иртыша","14.02.00","Водные объекты островов Белого моря в пределах внутренних морских вод и территориального моря РФ, прилегающего к береговой линии гидрографической един","03.03.00.101",null,null,null,null,null,null,null,null,"Тюменская область",21000,"Садоводческие, огороднические или дачные объединения граждан"]
[null,null,"Реки бассейна Карского моря междуречья Печоры и Оби","15.01.00","Водные объекты о-вов архипелага Земля Франца Иосифа","03.03.00.102",null,null,null,null,null,null,null,null,"Удмуртская Республика",21001,"Садоводческие, огороднические или дачные некоммерческие товарищества"]
[null,null,"(Нижняя) Обь от впадения Иртыша","15.02.00","Бассейны рек Баренцева моря от мыса Канин Нос до границы бассейна р. Печора ","03.04.00.001",null,null,null,null,null,null,null,null,"Ульяновская область",21002,"Садоводческие, огороднические или дачные потребительские кооперативы"]
[null,null,"Бассейны притоков Оби от Иртыша до впадения Северной Сосьвы","15.02.01","Водные объекты о-вов Баренцева моря в пределах внутренних морских вод и территориального моря РФ, прилегающего к береговой линии гидрографической един","03.04.00.100",null,null,null,null,null,null,null,null,"Усть-Ордынский Бурятский автономный округ",21003,"Садоводческие, огороднические или дачные некоммерческие партнерства"]
[null,null,"Северная Сосьва","15.02.02","Печора","03.05.01.001",null,null,null,null,null,null,null,null,"Хабаровский край",28000,"Юридические лица, являющиеся некоммерческими организациями, не включенные в другие группировки"]
[null,null,"Обь ниже впадения Северной Сосьвы","15.02.03","Печора","03.05.01.002",null,null,null,null,null,null,null,null,"Ханты-Мансийский автономный округ - Югра",28001,"Автономные некоммерческие организации"]
[null,null,"Надым","15.03.00","Уса","03.05.02.001",null,null,null,null,null,null,null,null,"Челябинская область",28002,"Адвокатские бюро"]
[null,null,"Пур","15.04.00","Печора","03.05.03.001",null,null,null,null,null,null,null,null,"Чеченская Республика",28003,"Государственные академии наук"]
[null,null,"Таз","15.05.00","Печора","03.05.03.002",null,null,null,null,null,null,null,null,"Читинская область",28004,"Государственные компании"]
[null,null,"Ангара","16.01.00","Острова Печорской губы Баренцева моря в пределах внутренних морских вод и территориального моря РФ, прилегающего к береговой линии гидрографической ед","03.05.03.100",null,null,null,null,null,null,null,null,"Чувашская Республика – Чувашия",28005,"Государственные корпорации"]
[null,null,"Ангара до створа гидроузла Братского водохранилища","16.01.01","Бассейны рек Баренцева моря от восточной границы бассейна р. Печора до восточной нраницы бассейна р. Бол. Ою","03.06.00.001",null,null,null,null,null,null,null,null,"Чукотский автономный округ",28006,"Казачьи общества"]
[null,null,"Тасеева","16.01.02","Водные объекты островов в пределах внутренних морских вод и территориального моря РФ, прилегающего к береговой линии гидрографической единицы 03.06.00","03.06.00.002",null,null,null,null,null,null,null,null,"Эвенкийский автономный округ",28007,"Коллегии адвокатов"]
[null,null,"Ангара от створа гидроузла Братского водохранилища до Енисея","16.01.03","Водные объекты о-вов архипелага Новая Земля","03.07.00.100",null,null,null,null,null,null,null,null,"Ямало-Ненецкий автономный округ",28008,"Общества взаимного страхования"]
[null,null,"Бассейны рек южной части оз. Байкал","16.02.00","Днепр","04.01.00.001",null,null,null,null,null,null,null,null,"Ярославская область",28010,"Общины коренных малочисленных народов"]
[null,null,"Селенга (российская часть бассейна)","16.03.00","Днепр","04.01.00.002",null,null,null,null,null,null,null,null,null,28012,"Объединения работодателей"]
[null,null,"Бассейны рек средней и северной части оз. Байкал","16.04.00","Бассейн р. Днепр без бассейнов рек: Сож, Десна, Псел, Ворскла ","04.01.00.003",null,null,null,null,null,null,null,null,null,28013,"Объединения (союзы) крестьянских (фермерских) хозяйств"]
[null,null,"Енисей (российская часть бассейна)","17.01.00","Бассейн р. Сож без бассейнов рек: Остер, Беседь, Ипуть","04.01.00.004",null,null,null,null,null,null,null,null,null,28014,"Отделения иностранных некоммерческих неправительственных организаций"]
[null,null,"Большой Енисей","17.01.01","Бассейн р. Остер","04.01.00.005",null,null,null,null,null,null,null,null,null,28016,"Товарищества собственников жилья"]
[null,null,"Малый Енисей (российская часть бассейна)","17.01.02","Бассейн р. Беседь","04.01.00.006",null,null,null,null,null,null,null,null,null,28017,"Территориальные общественные самоуправления"]
[null,null,"Енисей между слиянием Большого и Малого Енисея и впадением Ангары","17.01.03","Бассейн р. Ипуть","04.01.00.007",null,null,null,null,null,null,null,null,null,29000,"Иные некоммерческие организации, не включенные в другие группировки"]
[null,null,"Енисей между впадением Ангары и Подкаменной Тунгуски","17.01.04","Десна","04.01.00.008",null,null,null,null,null,null,null,null,null,30000,"ОРГАНИЗАЦИОННО-ПРАВОВЫЕ ФОРМЫ ОРГАНИЗАЦИЙ, СОЗДАННЫХ  БЕЗ ПРАВ ЮРИДИЧЕСКОГО ЛИЦА"]
[null,null,"Подкаменная Тунгуска","17.01.05","Болва","04.01.00.009",null,null,null,null,null,null,null,null,null,30001,"Представительства юридических лиц"]
[null,null,"Енисей между впадением Подкаменной Тунгуски и Нижней Тунгуски","17.01.06","Десна без р. Болва","04.01.00.010",null,null,null,null,null,null,null,null,null,30002,"Филиалы юридических лиц"]
[null,null,"Нижняя Тунгуска","17.01.07","Бассейн р. Десна без бассейнов рек Сейм и Снов","04.01.00.011",null,null,null,null,null,null,null,null,null,30003,"Обособленные подразделения юридических лиц"]
[null,null,"Енисей ниже впадения Нижней Тунгуски","17.01.08","Сейм","04.01.00.012",null,null,null,null,null,null,null,null,null,30004,"Структурные подразделения обособленных подразделений юридических лиц"]
[null,null,"Пясина","17.02.00","Бассейн р. Сейм","04.01.00.013",null,null,null,null,null,null,null,null,null,30005,"Паевые инвестиционные фонды"]
[null,null,"Нижняя Таймыра","17.03.00","Бассейн р. Снов","04.01.00.014",null,null,null,null,null,null,null,null,null,30006,"Простые товарищества"]
[null,null,"Хатанга","17.04.00","Бассейн р. Псел","04.01.00.015",null,null,null,null,null,null,null,null,null,40000,"ОРГАНИЗАЦИОННО-ПРАВОВЫЕ ФОРМЫ МЕЖДУНАРОДНЫХ ОРГАНИЗАЦИЙ, ОСУЩЕСТВЛЯЮЩИХ ДЕЯТЕЛЬНОСТЬ НА ТЕРРИТОРИИ РОССИЙСКОЙ ФЕДЕРАЦИИ"]
[null,null,"Хета","17.04.01","Бассейн р. Ворскла","04.01.00.016",null,null,null,null,null,null,null,null,null,40001,"Межправительственные международные организации"]
[null,null,"Котуй","17.04.02","Красивая Меча","05.01.01.001",null,null,null,null,null,null,null,null,null,40002,"Неправительственные международные организации"]
[null,null,"Попигай","17.04.03","Сосна","05.01.01.002",null,null,null,null,null,null,null,null,null,50000,"ОРГАНИЗАЦИОННО-ПРАВОВЫЕ ФОРМЫ ДЛЯ ДЕЯТЕЛЬНОСТИ ГРАЖДАН (ФИЗИЧЕСКИХ ЛИЦ)"]
[null,null,"Хатанга от слияния Хеты и Котуя до устья","17.04.04","Дон без рр. Красивая Меча и Сосна","05.01.01.003",null,null,null,null,null,null,null,null,null,50100,"Организационно-правовые формы для коммерческой деятельности граждан"]
[null,null,"Попигай","17.05.00","Матыра (Матырское в-ще)","05.01.01.004",null,null,null,null,null,null,null,null,null,50101,"Главы крестьянских (фермерских) хозяйств"]
[null,null,"Анабар","18.01.00","Воронеж без р. Матыра","05.01.01.005",null,null,null,null,null,null,null,null,null,50102,"Индивидуальные предприниматели"]
[null,null,"Оленек","18.02.00","Воронеж","05.01.01.006",null,null,null,null,null,null,null,null,null,50200,"Организационно-правовые формы для деятельности граждан, не отнесенной  к предпринимательству"]
[null,null,"Лена","18.03.00","Тихая Сосна","05.01.01.007",null,null,null,null,null,null,null,null,null,50201,"Адвокаты, учредившие адвокатский кабинет"]
[null,null,"Лена до впадения Витима","18.03.01","Дон без рр. Воронеж до Воронежского г/у и Тихая Сосна","05.01.01.008",null,null,null,null,null,null,null,null,null,50202,"Нотариусы, занимающиеся частной практикой"]
[null,null,"Витим","18.03.02","Битюг","05.01.01.009",null,null,null,null,null,null,null,null,null,12247,"Публичные акционерные общества"]
[null,null,"Лена между впадением Витима и Олекмы","18.03.03","Дон без р. Битюг","05.01.01.010"]
[null,null,"Олекма","18.03.04","Подгорная","05.01.01.011"]
[null,null,"Бассейны притоков Лены между впадением Олекмы и Алдана","18.03.05","Дон от г. Павловск до устья р. Хопер без р. Подгорная","05.01.01.012"]
[null,null,"Алдан","18.03.06","Хопер","05.01.02.001"]
[null,null,"Лена между впадением Алдана и Вилюя","18.03.07","Ворона","05.01.02.002"]
[null,null,"Вилюй","18.03.08","Савала","05.01.02.003"]
[null,null,"Лена ниже впадения Вилюя до устья","18.03.09","Бузулук","05.01.02.004"]
[null,null,"Яна","18.04.00","Хопер без рр. Ворона, Савала и Бузулук","05.01.02.005"]
[null,null,"Яна до впадения Адычи","18.04.01","Медведица","05.01.03.001"]
[null,null,"Адыча","18.04.02","Терса","05.01.03.002"]
[null,null,"Яна ниже впадения Адычи","18.04.03","Медведица без р. Терса","05.01.03.003"]
[null,null,"Индигирка","18.05.00","Иловля","05.01.03.004"]
[null,null,"Алазея","18.06.00","Дон без рр. Хопер, Медведица и Иловля","05.01.03.005"]
[null,null,"Колыма","19.01.00","Червленая (Береславское в-ще)","05.01.03.006"]
[null,null,"Бассейны притоков Колымы до впадения Омолона","19.01.01","Карповка (Карповское в-ще)","05.01.03.007"]
[null,null,"Бассейны притоков Колымы ниже Омолона (без Анюя)","19.01.01","Чир","05.01.03.008"]
[null,null,"Омолон","19.01.02","Дон без р. Чир (Цимлянское в-ще)","05.01.03.009"]
[null,null,"Анюй","19.01.03","Дон ","05.01.03.010"]
[null,null,"Колыма ниже Омолона (без Анюя)","19.01.04","Северский Донец и его притоки от границы с бассейном Днепра до границы бассейна р. Оскол ","05.01.04.001"]
[null,null,"Бассейны рек Восточно-Сибирского моря восточнее Колымы","19.02.00","Оскол (Старооскольское в-ще)","05.01.04.002"]
[null,null,"Бассейны рек Чукотского моря","19.03.00","Оскол и его притоки ","05.01.04.003"]
[null,null,"Бассейны рек Берингова моря (от Чукотки до Анадыря)","19.04.00","Айдар и его притоки ","05.01.04.004"]
[null,null,"Анадырь","19.05.00","Северский Донец и его притоки от границы с Респ. Украина","05.01.04.005"]
[null,null,"Бассейны рек Берингова моря (южнее Анадыря)","19.06.00","Калитва","05.01.04.006"]
[null,null,"Камчатка","19.07.00","Северский Донец без р.Калитва","05.01.04.007"]
[null,null,"Реки Камчатки бассейна Охотского моря (до Пенжины)","19.08.00","Сал","05.01.05.001"]
[null,null,"Пенжина","19.09.00","Калаус","05.01.05.002"]
[null,null,"Бассейны рек Охотского моря от Пенжины до хр.Сунтар-Хаята","19.10.00","Егорлык (Сенгилеевское в-ще)","05.01.05.003"]
[null,null,"Бассейны рек Охотского моря от хр. Сунтар-Хаята до Уды","20.01.00","Егорлык (Егорлыкское в-ще)","05.01.05.004"]
[null,null,"Уда","20.02.00","Егорлык (Новотроицкое в-ще)","05.01.05.005"]
[null,null,"Амур (российская часть бассейна)","20.03.00","Егорлык","05.01.05.006"]
[null,null,"Шилка (российская часть бассейна)","20.03.01","Маныч без рр. Калаус и Егорлык (Пролетарское в-ще)","05.01.05.007"]
[null,null,"Аргунь (российская часть бассейна)","20.03.02","Маныч (Веселовское в-ще)","05.01.05.008"]
[null,null,"Амур от слияния Шилки и Аргуни до впадения Зеи (российская часть бассейна)","20.03.03","Дон без рр. Северский Донец, Сал и Маныч до Веселовского г/у","05.01.05.009"]
[null,null,"Зея","20.03.04","Реки бассейна Таганрогского залива от границы РФ с Украиной до западной границы бассейна р.Дон","05.01.05.010"]
[null,null,"Бурея","20.03.05","Реки бассейна Таганрогского залива от южной границы бассейна р.Дон до северной границы бассейна р. Ея","05.01.05.011"]
[null,null,"Амур между впадением Буреи и Уссури (российская часть бассейна)","20.03.06","Водные объекты бассейна Ейского лимана (вкл. бассейн р. Ея)","06.01.00.001"]
[null,null,"Уссури (российская часть бассейна)","20.03.07","Водные объекты бассейна Азовского моря от южной границы бассейна Ейского лимана до южной границы бассейна Бейсугского лимана (вкл. р.Бейсуг) ","06.01.00.002"]
[null,null,"Амгунь","20.03.08","Водные объекты бассейна Азовского моря от южной границы бассейна Бейсугского лимана до северной границы бассейна р.Протока (вкл. р. Кирпили) ","06.01.00.003"]
[null,null,"Амур от впадения Уссури до устья","20.03.09","Водные объекты островов  Азовского моря в пределах внутренних морских вод и территориального моря РФ, прилегающего к береговой линии гидрографической ","06.01.00.004"]
[null,null,"Бассейны рек Японского моря","20.04.00","Кубань","06.02.00.001"]
[null,null,"Бассейны рек о. Сахалин","20.05.00","Малый Зеленчук","06.02.00.002"]
[null,null,null,null,"Большой Зеленчук","06.02.00.003"]
[null,null,null,null,"Кубань без рр. Б. и М. Зеленчук","06.02.00.004"]
[null,null,null,null,"Уруп","06.02.00.005"]
[null,null,null,null,"Кубань без р. Уруп","06.02.00.006"]
[null,null,null,null,"Лаба","06.02.00.007"]
[null,null,null,null,"Чамлык","06.02.00.008"]
[null,null,null,null,"Лаба без р. Чамлык","06.02.00.009"]
[null,null,null,null,"Кубань без р. Лаба","06.02.00.010"]
[null,null,null,null,"Белая","06.02.00.011"]
[null,null,null,null,"Пшиш","06.02.00.012"]
[null,null,null,null,"Кубань без рр. Белая и Пшиш","06.02.00.013"]
[null,null,null,null,"Кубань ","06.02.00.014"]
[null,null,null,null,"Афипс вкл. Шапсугское в-ще","06.02.00.015"]
[null,null,null,null,"Кубань без р. Афипс","06.02.00.016"]
[null,null,null,null,"Протока ","06.02.00.017"]
[null,null,null,null,"Водные объекты бассейна Крюковского в-ща","06.02.00.018"]
[null,null,null,null,"Водные объекты бассейна Варнавинского в-ща","06.02.00.019"]
[null,null,null,null,"Варнавинский Сбросной канал, вкл. Афипский коллектор без Шапсугского в-ща","06.02.00.020"]
[null,null,null,null,"Кубань и другие реки в ее дельте без Варнавинского Сбросного канала и р.Протока","06.02.00.021"]
[null,null,null,null,"Реки бассейна Черного моря от мыса Панагия до до восточной границы р. Джанхот","06.03.00.001"]
[null,null,null,null,"Реки бассейна Черного моря от западной границы бассейна р.Пшада до восточной границы р. Дедеркай","06.03.00.002"]
[null,null,null,null,"Реки бассейна Черного моря от западной границы бассейна р.Шепси до р. Псоу (граница РФ с Грузией)","06.03.00.003"]
[null,null,null,null,"Восточный Маныч","07.01.00.001"]
[null,null,null,null,"Восточный Маныч","07.01.00.002"]
[null,null,null,null,"Кума","07.01.00.003"]
[null,null,null,null,"Подкумок","07.01.00.004"]
[null,null,null,null,"Подкумок","07.01.00.005"]
[null,null,null,null,"Кума","07.01.00.006"]
[null,null,null,null,"Кума","07.01.00.007"]
[null,null,null,null,"Кума","07.01.00.008"]
[null,null,null,null,"Мокрая Буйвола","07.01.00.009"]
[null,null,null,null,"Кума","07.01.00.010"]
[null,null,null,null,"Сухая Кума","07.01.00.011"]
[null,null,null,null,"Кура","07.01.00.012"]
[null,null,null,null,"Водные объекты междуречья Терека и Сухой Кумы","07.01.00.013"]
[null,null,null,null,"Ардон","07.02.00.001"]
[null,null,null,null,"Терек без р.Ардон","07.02.00.002"]
[null,null,null,null,"Терек","07.02.00.003"]
[null,null,null,null,"Терек ","07.02.00.004"]
[null,null,null,null,"Малка","07.02.00.005"]
[null,null,null,null,"Черек","07.02.00.006"]
[null,null,null,null,"Баксан без р. Черек","07.02.00.007"]
[null,null,null,null,"Малка без р. Баксан","07.02.00.008"]
[null,null,null,null,"Терек без р. Малка","07.02.00.009"]
[null,null,null,null,"Терек","07.02.00.010"]
[null,null,null,null,"Сунжа","07.02.00.011"]
[null,null,null,null,"Сунжа","07.02.00.012"]
[null,null,null,null,"Сунжа без Алханчуртского канала","07.02.00.013"]
[null,null,null,null,"Водные объекты междуречья Терека и Сунжи (Алханчуртский канал)","07.02.00.014"]
[null,null,null,null,"Терек без р.Сунжа","07.02.00.015"]
[null,null,null,null,"Терек (дельта)","07.02.00.016"]
[null,null,null,null,"Водные объекты островов Каспийского моря в пределах внутренних морских вод и территориального моря РФ, прилегающего к береговой линии гидрографической","07.02.00.100"]
[null,null,null,null,"Сулак","07.03.00.001"]
[null,null,null,null,"Сулак","07.03.00.002"]
[null,null,null,null,"Реки бассейна Каспийского моря от юго-восточной границы бассейна р. Сулак до северной границы бассейна р. Самур","07.03.00.003"]
[null,null,null,null,"Самур","07.03.00.004"]
[null,null,null,null,"Водные объекты между юго-западной границей бассейна Волги, юго-восточной границей бассейна Дона и северной границей бассейнов Восточного Маныча и Кумы","07.04.00.001"]
[null,null,null,null,"Волга","08.01.01.001"]
[null,null,null,null,"Яуза","08.01.01.002"]
[null,null,null,null,"Вазуза без р.Яуза до Кармановского г/у","08.01.01.003"]
[null,null,null,null,"Волга без р.Вазуза до Зубцовского г/у","08.01.01.004"]
[null,null,null,null,"Тверца","08.01.01.005"]
[null,null,null,null,"Волга без р.Тверца","08.01.01.006"]
[null,null,null,null,"Волга","08.01.01.007"]
[null,null,null,null,"Волга","08.01.01.008"]
[null,null,null,null,"Волга","08.01.01.009"]
[null,null,null,null,"Молога","08.01.02.001"]
[null,null,null,null,"Суда","08.01.02.002"]
[null,null,null,null,"Шексна","08.01.02.003"]
[null,null,null,null,"Рыбинское в-ще без рр.Молога, Суда и Шексна до Череповецкого г/у","08.01.02.004"]
[null,null,null,null,"Кострома","08.01.03.001"]
[null,null,null,null,"Волга без р.Кострома до в/п д.Исады","08.01.03.002"]
[null,null,null,null,"Унжа","08.01.03.003"]
[null,null,null,null,"Горьковское в-ще без р.Унжа","08.01.03.004"]
[null,null,null,null,"Волга","08.01.03.005"]
[null,null,null,null,"Ветлуга ","08.01.04.001"]
[null,null,null,null,"г.Ветлуга (в/п г. Ветлуга)","08.01.04.002"]
[null,null,null,null,"Чебоксарское в-ще без рр.Сура и Ветлуга","08.01.04.003"]
[null,null,null,null,"Цивиль","08.01.04.004"]
[null,null,null,null,"Свияга","08.01.04.005"]
[null,null,null,null,"Свияга","08.01.04.006"]
[null,null,null,null,"Волга без рр.Свияга и Цивиль ","08.01.04.007"]
[null,null,null,null,"Сура","08.01.05.001"]
[null,null,null,null,"Алатырь","08.01.05.002"]
[null,null,null,null,"Сура","08.01.05.003"]
[null,null,null,null,"Сура без р.Алатырь","08.01.05.004"]
[null,null,null,null,"Ока","09.01.01.001"]
[null,null,null,null,"Ока","09.01.01.002"]
[null,null,null,null,"Упа","09.01.01.003"]
[null,null,null,null,"Угра","09.01.01.004"]
[null,null,null,null,"Ока без рр. Упа и Угра","09.01.01.005"]
[null,null,null,null,"Протва","09.01.01.006"]
[null,null,null,null,"Нара","09.01.01.007"]
[null,null,null,null,"Ока без рр.Протва и Нара","09.01.01.008"]
[null,null,null,null,"Ока","09.01.01.009"]
[null,null,null,null,"Москва","09.01.01.010"]
[null,null,null,null,"Руза","09.01.01.011"]
[null,null,null,null,"Озерна","09.01.01.012"]
[null,null,null,null,"Москва без р.Руза до Рузского г/у и р.Озерна до Озернинского г/у","09.01.01.013"]
[null,null,null,null,"Истра","09.01.01.014"]
[null,null,null,null,"Москва без р.Истра до Истринского г/у","09.01.01.015"]
[null,null,null,null,"Пахра","09.01.01.016"]
[null,null,null,null,"Москва без р.Пахра","09.01.01.017"]
[null,null,null,null,"Москва","09.01.01.018"]
[null,null,null,null,"Ока без р.Москва","09.01.01.019"]
[null,null,null,null,"Ока ","09.01.01.020"]
[null,null,null,null,"Проня","09.01.01.021"]
[null,null,null,null,"Ока без р.Проня","09.01.01.022"]
[null,null,null,null,"Ока","09.01.01.023"]
[null,null,null,null,"Мокша","09.01.02.001"]
[null,null,null,null,"Цна","09.01.02.002"]
[null,null,null,null,"Цна","09.01.02.003"]
[null,null,null,null,"Мокша без р.Цна","09.01.02.004"]
[null,null,null,null,"Ока без р.Мокша","09.01.03.001"]
[null,null,null,null,"Теша","09.01.03.002"]
[null,null,null,null,"Клязьма ","09.01.03.003"]
[null,null,null,null,"Уча","09.01.03.004"]
[null,null,null,null,"Клязма без р.Уча до Акуловского г/у","09.01.03.005"]
[null,null,null,null,"Клязьма ","09.01.03.006"]
[null,null,null,null,"Клязма","09.01.03.007"]
[null,null,null,null,"Нерль","09.01.03.008"]
[null,null,null,null,"Клязьма без р.Нерль","09.01.03.009"]
[null,null,null,null,"Уводь","09.01.03.010"]
[null,null,null,null,"Клязьма без р.Уводь","09.01.03.011"]
[null,null,null,null,"Ока без рр.Теша и Клязьма","09.01.03.012"]
[null,null,null,null,"Ока","09.01.03.013"]
[null,null,null,null,"Кама","10.01.01.001"]
[null,null,null,null,"Кама","10.01.01.002"]
[null,null,null,null,"Косьва","10.01.01.003"]
[null,null,null,null,"Ревда","10.01.01.004"]
[null,null,null,null,"Чусовая без р.Ревда до Новомариинского г/у","10.01.01.005"]
[null,null,null,null,"Чусовая","10.01.01.006"]
[null,null,null,null,"Чусовая","10.01.01.007"]
[null,null,null,null,"Сылва","10.01.01.008"]
[null,null,null,null,"Кама без рр.Косьва до Широковского г/у, Чусовая и Сылва","10.01.01.009"]
[null,null,null,null,"Кама","10.01.01.010"]
[null,null,null,null,"Буй","10.01.01.011"]
[null,null,null,null,"Иж","10.01.01.012"]
[null,null,null,null,"Ик","10.01.01.013"]
[null,null,null,null,"Кама без рр.Буй до Кармановского г/у, Иж, Ик и Белая","10.01.01.014"]
[null,null,null,null,"Кама без р.Вятка","10.01.01.015"]
[null,null,null,null,"Белая","10.01.02.001"]
[null,null,null,null,"Белая","10.01.02.002"]
[null,null,null,null,"Нугуш","10.01.02.003"]
[null,null,null,null,"Белая без р.Нугуш до Нугушского г/у","10.01.02.004"]
[null,null,null,null,"Белая","10.01.02.005"]
[null,null,null,null,"Сим","10.01.02.006"]
[null,null,null,null,"Белая без р.Сим","10.01.02.007"]
[null,null,null,null,"Уфа","10.01.02.008"]
[null,null,null,null,"Уфа","10.01.02.009"]
[null,null,null,null,"Ай","10.01.02.010"]
[null,null,null,null,"Уфа без р.Ай","10.01.02.011"]
[null,null,null,null,"Уфа","10.01.02.012"]
[null,null,null,null,"Дема","10.01.02.013"]
[null,null,null,null,"Белая без рр.Уфа до пгт Шакша и Дема до в/п д.Бочкарева","10.01.02.014"]
[null,null,null,null,"Белая","10.01.02.015"]
[null,null,null,null,"Белая","10.01.02.016"]
[null,null,null,null,"Чепца","10.01.03.001"]
[null,null,null,null,"Вятка без р.Чепца","10.01.03.002"]
[null,null,null,null,"Вятка","10.01.03.003"]
[null,null,null,null,"Вятка","10.01.03.004"]
[null,null,null,null,"Вятка","10.01.03.005"]
[null,null,null,null,"Вятка","10.01.03.006"]
[null,null,null,null,"Волжский участок Куйбышевского в-ща (без р.Кама)","11.01.00.001"]
[null,null,null,null,"Шешма","11.01.00.002"]
[null,null,null,null,"Камский участок Куйбышевского в-ща (без р.Волга, р.Шешма)","11.01.00.003"]
[null,null,null,null,"Бол.Черемшан","11.01.00.004"]
[null,null,null,null,"Куйбышевское в-ще (без р.Бол.Черемшан)","11.01.00.005"]
[null,null,null,null,"Сок","11.01.00.006"]
[null,null,null,null,"Кутулук ","11.01.00.007"]
[null,null,null,null,"Бол.Кинель (без р.Кутулук до Кутулукского г/у)","11.01.00.008"]
[null,null,null,null,"Самара","11.01.00.009"]
[null,null,null,null,"Самара ","11.01.00.010"]
[null,null,null,null,"Самара (без р.Бол.Кинель)","11.01.00.011"]
[null,null,null,null,"Чапаевка","11.01.00.012"]
[null,null,null,null,"Сызранка","11.01.00.013"]
[null,null,null,null,"Мал.Иргиз","11.01.00.014"]
[null,null,null,null,"Саратовское в-ще (без рек Сок, Самара, Чапаевка, Сызранка, Мал.Иргиз)","11.01.00.015"]
[null,null,null,null,"Бол.Иргиз","11.01.00.016"]
[null,null,null,null,"Бол.Иргиз","11.01.00.017"]
[null,null,null,null,"Бол.Караман","11.01.00.018"]
[null,null,null,null,"Терешка","11.01.00.019"]
[null,null,null,null,"Еруслан","11.01.00.020"]
[null,null,null,null,"Торгун и Палласовская система","11.01.00.021"]
[null,null,null,null,"Волгоградское в-ще (без рек Бол.Иргиз, Бол.Караман, Терешка, Еруслан, Торгун)","11.01.00.022"]
[null,null,null,null,"Волга","11.01.00.023"]
[null,null,null,null,"Волга","11.01.00.024"]
[null,null,null,null,"Дельта Волги","11.01.00.025"]
[null,null,null,null,"оз.Эльтон","11.01.00.026"]
[null,null,null,null,"Бессточные области левобережья Волги","11.01.00.027"]
[null,null,null,null,"Бессточные области правобережья Волги","11.01.00.028"]
[null,null,null,null,"Урал","12.01.00.001"]
[null,null,null,null,"Урал","12.01.00.002"]
[null,null,null,null,"Урал","12.01.00.003"]
[null,null,null,null,"Урал (российская часть бассейна)","12.01.00.004"]
[null,null,null,null,"Сакмара","12.01.00.005"]
[null,null,null,null,"Большой Ик","12.01.00.006"]
[null,null,null,null,"Сакмара без р. Большой Ик","12.01.00.007"]
[null,null,null,null,"Урал (российская часть бассейна)","12.01.00.008"]
[null,null,null,null,"Илек (российская часть бассейна)","12.01.00.009"]
[null,null,null,null,"Российская часть бассейна р. Урал без рр. Сакмара и Илек","12.01.00.010"]
[null,null,null,null,"Малый Узень - российская часть бассейна","12.02.00.001"]
[null,null,null,null,"Большой Узень - российская часть бассейна","12.02.00.002"]
[null,null,null,null,"Оз. Телецкое и впадающие в него реки","13.01.01.001"]
[null,null,null,null,"Бия","13.01.01.002"]
[null,null,null,null,"Катунь","13.01.01.003"]
[null,null,null,null,"Водные объекты бессточной территории между бассейнами рек Обь, Енисей и границей РФ с Монголией ","13.01.01.200"]
[null,null,null,null,"Верховья р. Алей (российская часть бассейна)","13.01.02.001"]
[null,null,null,null,"Алей (российская часть бассейна)","13.01.02.002"]
[null,null,null,null,"Обь без р. Алей","13.01.02.003"]
[null,null,null,null,"Чумыш","13.01.02.004"]
[null,null,null,null,"Обь без р. Чумыш","13.01.02.005"]
[null,null,null,null,"Иня","13.01.02.006"]
[null,null,null,null,"Обь без рр. Иня и Томь","13.01.02.007"]
[null,null,null,null,"Кондома","13.01.03.001"]
[null,null,null,null,"Томь без р. Кондома","13.01.03.002"]
[null,null,null,null,"Томь ","13.01.03.003"]
[null,null,null,null,"Томь","13.01.03.004"]
[null,null,null,null,"Чулым","13.01.04.001"]
[null,null,null,null,"Чулым","13.01.04.002"]
[null,null,null,null,"Чулым","13.01.04.003"]
[null,null,null,null,"Обь без р. Чулым","13.01.05.001"]
[null,null,null,null,"Кеть","13.01.06.001"]
[null,null,null,null,"Обь без р. Кеть","13.01.07.001"]
[null,null,null,null,"Васюган","13.01.08.001"]
[null,null,null,null,"Обь без р. Васюган","13.01.09.001"]
[null,null,null,null,"Вах","13.01.10.001"]
[null,null,null,null,"Обь без р. Вах","13.01.11.001"]
[null,null,null,null,"Обь","13.01.11.002"]
[null,null,null,null,"Бассейн оз. Кучукского","13.02.00.001"]
[null,null,null,null,"Бассейн оз. Кулундинского","13.02.00.002"]
[null,null,null,null,"Водные объекты южнее бассейна р. Бурла без бассейнов озер Кучукского и Кулундинского","13.02.00.003"]
[null,null,null,null,"Бассейн оз. Тополиное и р. Бурла","13.02.00.004"]
[null,null,null,null,"Бассейн оз. Чаны и водные объекты до границы с бассейном р. Иртыш ","13.02.00.005"]
[null,null,null,null,"Водные объекты между бассейнами оз. Чаны и р. Омь","13.02.00.006"]
[null,null,null,null,"Иртыш","14.01.01.001"]
[null,null,null,null,"Оша","14.01.01.002"]
[null,null,null,null,"Иртыш без рр. Омь и Оша","14.01.01.003"]
[null,null,null,null,"Бессточные приграничные территории междуречья Иртыша и Ишима","14.01.01.200"]
[null,null,null,null,"Омь","14.01.02.001"]
[null,null,null,null,"Водные объекты бассейна оз. Большой Уват до г/у Большой Уват в истоке р. Вертенис","14.01.03.001"]
[null,null,null,null,"Ишим от границы РФ с Респ. Казахстан до устья без оз. Большой Уват до г/у Большой Уват","14.01.03.002"]
[null,null,null,null,"Иртыш без р. Ишим","14.01.04.001"]
[null,null,null,null,"Увелька","14.01.05.001"]
[null,null,null,null,"Верховья р. Тобол до впадения р.Уй без р.Увелька - российская часть бассейна","14.01.05.002"]
[null,null,null,null,"Тобол","14.01.05.003"]
[null,null,null,null,"Тобол","14.01.05.004"]
[null,null,null,null,"Исеть","14.01.05.005"]
[null,null,null,null,"Исеть","14.01.05.006"]
[null,null,null,null,"Теча","14.01.05.007"]
[null,null,null,null,"Миасс","14.01.05.008"]
[null,null,null,null,"Миасс","14.01.05.009"]
[null,null,null,null,"Миасс","14.01.05.010"]
[null,null,null,null,"Исеть без рр. Теча и Миасс","14.01.05.011"]
[null,null,null,null,"Тура","14.01.05.012"]
[null,null,null,null,"Черная ","14.01.05.013"]
[null,null,null,null,"Тагил без р. Черная ","14.01.05.014"]
[null,null,null,null,"Тагил","14.01.05.015"]
[null,null,null,null,"Нейва","14.01.05.016"]
[null,null,null,null,"Аять","14.01.05.017"]
[null,null,null,null,"Реж (без р.Аять от истока до Аятского г/у) и Нейва (от Невьянского г/у) до их слияния ","14.01.05.018"]
[null,null,null,null,"Ница без рр. Реж и Нейва","14.01.05.019"]
[null,null,null,null,"Пышма","14.01.05.020"]
[null,null,null,null,"Рефт","14.01.05.021"]
[null,null,null,null,"Пышма без р. Рефт до Рефтинского г/у","14.01.05.022"]
[null,null,null,null,"Тура без рр. Тагил, Ница и Пышма","14.01.05.023"]
[null,null,null,null,"Сосьва","14.01.05.024"]
[null,null,null,null,"Тавда без р. Сосьва до в/п д. Морозково","14.01.05.025"]
[null,null,null,null,"Тобол без рр. Исеть, Тура, Тавда","14.01.05.026"]
[null,null,null,null,"Конда","14.01.06.001"]
[null,null,null,null,"Иртыш без рр. Тобол и Конда","14.01.07.001"]
[null,null,null,null,"Реки бассейна Карского моря от западной границы бассейна р. Бол. Ою до мыса Скуратова","15.01.00.001"]
[null,null,null,null,"Острова Карского моря в пределах внутренних морских вод и территориального моря РФ, прилегающего к береговой линии гидрографической единицы 15.01.00","15.01.00.100"]
[null,null,null,null,"Обь от Иртыша до впадения Северной Сосьвы","15.02.01.001"]
[null,null,null,null,"Северная Сосьва","15.02.02.001"]
[null,null,null,null,"Обь без р. Сев.Сосва","15.02.03.001"]
[null,null,null,null,"Обь ","15.02.03.002"]
[null,null,null,null,"Реки п-ва Ямал бассейна Обской губы от северо-западной границы бассейна р. Обь до мыса Скуратова","15.02.03.003"]
[null,null,null,null,"Острова Карского моря в пределах внутренних морских вод и территориального моря РФ, прилегающего к береговой линии гидрографической единицы 15.02.03 (","15.02.03.100"]
[null,null,null,null,"Надым ","15.03.00.001"]
[null,null,null,null,"Пур","15.04.00.001"]
[null,null,null,null,"Реки бассейна Карского моря от восточной границы бассейна р. Надым до северо-западной границы бассейна р. Пур","15.04.00.002"]
[null,null,null,null,"Таз","15.05.00.001"]
[null,null,null,null,"Реки бассейна Карского моря от северо-восточной границы бассейна р. Таз до западной границы бассейна р. Монгочеяха","15.05.00.002"]
[null,null,null,null,"Острова Карского моря в пределах внутренних морских вод и территориального моря РФ, прилегающего к береговой линии гидрографической единицы 15.05.00 (","15.05.00.100"]
[null,null,null,null,"Иркутское в-ще (включая оз.Байкал и р. Ангара от истока до Иркутского г/у) ","16.01.01.001"]
[null,null,null,null,"Иркут","16.01.01.002"]
[null,null,null,null,"Китой","16.01.01.003"]
[null,null,null,null,"Ангара без рр. Иркут, Китой","16.01.01.004"]
[null,null,null,null,"Белая","16.01.01.005"]
[null,null,null,null,"Ока","16.01.01.006"]
[null,null,null,null,"Ия","16.01.01.007"]
[null,null,null,null,"Ангара без рр. Белая, Ока, Ия (Братское в-ще)","16.01.01.008"]
[null,null,null,null,"Чуна (Уда)","16.01.02.001"]
[null,null,null,null,"Бирюса","16.01.02.002"]
[null,null,null,null,"Тасеева","16.01.02.003"]
[null,null,null,null,"Ангара","16.01.03.001"]
[null,null,null,null,"Ангара","16.01.03.002"]
[null,null,null,null,"Ангара без р. Тасеева ","16.01.03.003"]
[null,null,null,null,"Бассейны рек южной части оз.Байкал в междуречье рек Селенга и Ангара","16.02.00.001"]
[null,null,null,null,"Джида","16.03.00.001"]
[null,null,null,null,"Чикой","16.03.00.002"]
[null,null,null,null,"Хилок","16.03.00.003"]
[null,null,null,null,"Уда","16.03.00.004"]
[null,null,null,null,"Селенга без рр. Джида, Чикой, Хилок, Уда","16.03.00.005"]
[null,null,null,null,"Селенга","16.03.00.006"]
[null,null,null,null,"Бассейны рек средней и северной части оз. Байкал от восточной границы бассейна р. Ангара до северо-западной границы бассейна р. Баргузин","16.04.00.001"]
[null,null,null,null,"Бассейны рек средней части оз. Байкал от северо-западной границы бассейна р. Баргузин до северной границы бассейна р. Селенга ","16.04.00.002"]
[null,null,null,null,"Большой Енисей","17.01.01.001"]
[null,null,null,null,"Малый Енисей","17.01.02.001"]
[null,null,null,null,"Енисей","17.01.03.001"]
[null,null,null,null,"Енисей","17.01.03.002"]
[null,null,null,null,"Водохозяйственные участки","17.01.03.003"]
[null,null,null,null,"Енисей","17.01.03.003"]
[null,null,null,null,"Кан","17.01.03.004"]
[null,null,null,null,"Енисей без р. Кан","17.01.03.005"]
[null,null,null,null,"Водные объекты бассейна оз. Убсу-Нур на границе РФ с Монголией","17.01.03.200"]
[null,null,null,null,"Енисей без р. Ангара","17.01.04.001"]
[null,null,null,null,"Енисей","17.01.04.002"]
[null,null,null,null,"Подкаменная Тунгуска","17.01.05.001"]
[null,null,null,null,"Чуня","17.01.05.002"]
[null,null,null,null,"Подкаменная Тунгуска без р. Чуня","17.01.05.003"]
[null,null,null,null,"Енисей без р. Подкаменная Тунгуска","17.01.06.001"]
[null,null,null,null,"Нижняя Тунгуска","17.01.07.001"]
[null,null,null,null,"Нижняя Тунгуска","17.01.07.002"]
[null,null,null,null,"Нижняя Тунгуска","17.01.07.003"]
[null,null,null,null,"Нижняя Тунгуска","17.01.07.004"]
[null,null,null,null,"Курейка","17.01.08.001"]
[null,null,null,null,"Енисей без рр. Нижняя Тунгуска и Курейка (от истока до Курейского г/у)","17.01.08.002"]
[null,null,null,null,"Хантайка","17.01.08.003"]
[null,null,null,null,"Енисей без р. Хантайка от истока до Усть-Хантайского г/у","17.01.08.004"]
[null,null,null,null,"Реки бассейна Енисейского залива от западной границы бассейна р. Монгочеяха до северной границы бассейна р. Чертова без р. Енисей","17.01.08.005"]
[null,null,null,null,"Водные объекты островов Карского моря в пределах внутренних морских вод и территориального моря РФ, прилегающего к береговой линии гидрографической ед","17.01.08.100"]
[null,null,null,null,"Пясина и другие реки бассейна Карского моря от восточной границы бассейна Енисейского залива до западной границы бассейна р. Каменная","17.02.00.001"]
[null,null,null,null,"Водные объекты островов Карского моря в пределах внутренних морских вод и территориального моря РФ, прилегающего к береговой линии гидрографической ед","17.02.00.100"]
[null,null,null,null,"Нижняя Таймыра (вкл. оз. Таймыр) и другие реки бассейна Карского от западной границы бассейна р. Каменная до мыса Прончищева","17.03.00.001"]
[null,null,null,null,"Водные объекты островов в пределах внутренних морских вод и территориального моря РФ, прилегающего к береговой линии гидрографической единицы 17.03.00","17.03.00.100"]
[null,null,null,null,"Хета","17.04.01.001"]
[null,null,null,null,"Котуй","17.04.02.001"]
[null,null,null,null,"Попигай","17.04.03.001"]
[null,null,null,null,"Хатанга без р. Попигай","17.04.04.001"]
[null,null,null,null,"Реки бассейна моря Лаптевых от мыса Прончищева до границы между Таймырским (Долгано-Ненецким) а.о. и Респ. Саха (Якутия) без р. Хатанга","17.04.04.002"]
[null,null,null,null,"Реки бассейна моря Лаптевых (включая р. Анабар) от восточной границы бассейна р. Тикян-Юрях на западе до границы бассейна р. Оленек на востоке ","18.01.00.001"]
[null,null,null,null,"Острова моря Лаптевых в пределах внутренних морских вод и территориального моря РФ, прилегающего к береговой линии гидрографической единицы 18.01.00 (","18.01.00.100"]
[null,null,null,null,"Оленек","18.02.00.001"]
[null,null,null,null,"Оленек","18.02.00.002"]
[null,null,null,null,"Острова моря Лаптевых в пределах внутренних морских вод и территориального моря РФ, прилегающего к береговой линии гидрографической единицы 18.02.00","18.02.00.100"]
[null,null,null,null,"Лена","18.03.01.001"]
[null,null,null,null,"Лена","18.03.01.002"]
[null,null,null,null,"Киренга","18.03.01.003"]
[null,null,null,null,"Лена без р.Киренга","18.03.01.004"]
[null,null,null,null,"Витим","18.03.02.001"]
[null,null,null,null,"Витим","18.03.02.002"]
[null,null,null,null,"Витим","18.03.02.003"]
[null,null,null,null,"Мамакан","18.03.02.004"]
[null,null,null,null,"Витим без р.Мамакан до Мамаканской ГЭС","18.03.02.005"]
[null,null,null,null,"Нюя","18.03.03.001"]
[null,null,null,null,"Лена без рр.Витим и Нюя","18.03.03.002"]
[null,null,null,null,"Лена","18.03.03.003"]
[null,null,null,null,"Олекма","18.03.04.001"]
[null,null,null,null,"Чара","18.03.04.002"]
[null,null,null,null,"Олекма без р.Чара","18.03.04.003"]
[null,null,null,null,"Лена между впадением Олекмы и Алдана","18.03.05.001"]
[null,null,null,null,"Лена","18.03.05.002"]
[null,null,null,null,"Алдан","18.03.06.001"]
[null,null,null,null,"Алдан","18.03.06.002"]
[null,null,null,null,"Учур","18.03.06.003"]
[null,null,null,null,"Алдан без р.Учур","18.03.06.004"]
[null,null,null,null,"Мая","18.03.06.005"]
[null,null,null,null,"Мая","18.03.06.006"]
[null,null,null,null,"Алдан без р.Мая","18.03.06.007"]
[null,null,null,null,"Амга","18.03.06.008"]
[null,null,null,null,"Алдан без р.Амга","18.03.06.009"]
[null,null,null,null,"Лена без р.Алдан","18.03.07.001"]
[null,null,null,null,"Вилюй","18.03.08.001"]
[null,null,null,null,"Вилюй","18.03.08.002"]
[null,null,null,null,"Вилюй","18.03.08.003"]
[null,null,null,null,"Марха","18.03.08.004"]
[null,null,null,null,"Тюнг","18.03.08.005"]
[null,null,null,null,"Вилюй без рр.Марха и Тюнг","18.03.08.006"]
[null,null,null,null,"Лена без р.Вилюй","18.03.09.001"]
[null,null,null,null,"Лена","18.03.09.002"]
[null,null,null,null,"Лена","18.03.09.003"]
[null,null,null,null,"Острова моря Лаптевых в пределах внутренних морских вод и территориального моря РФ, прилегающего к береговой линии гидрографической единицы 18.03.09","18.03.09.100"]
[null,null,null,null,"Яна","18.04.01.001"]
[null,null,null,null,"Адыча","18.04.02.001"]
[null,null,null,null,"Бытантай","18.04.03.001"]
[null,null,null,null,"Яна без рр.Адыча и Бытантай","18.04.03.002"]
[null,null,null,null,"Реки бассейна моря Лаптевых от границы бассейна р. Лена на западе до границы бассейна р. Яна на востоке ","18.04.03.003"]
[null,null,null,null,"Реки бассейна моря Лаптевых от границы бассейна р. Яна на западе до границы бассейна Восточно-Сибирского моря (мыс Святой Нос) на востоке","18.04.03.004"]
[null,null,null,null,"Острова в пределах внутренних морских вод и территориального моря РФ, прилегающего к береговой линии гидрографической единицы 18.04.03","18.04.03.100"]
[null,null,null,null,"Индигирка","18.05.00.001"]
[null,null,null,null,"Индигирка","18.05.00.002"]
[null,null,null,null,"Индигирка","18.05.00.003"]
[null,null,null,null,"Индигирка","18.05.00.004"]
[null,null,null,null,"Реки бассейна Восточно-Сибирского моря от мыса Святой Нос на западе до границы бассейна р. Индигирка на востоке","18.05.00.005"]
[null,null,null,null,"Острова в пределах внутренних морских вод и территориального моря РФ, прилегающего к береговой линии гидрографической единицы 18.05.00  (вкл. Новосиби","18.05.00.100"]
[null,null,null,null,"Реки бассейна Восточно-Сибирского моря (вкл. р. Алазея) от границы бассейна р. Индигирка на западе до границы бассейна р. Колыма на востоке","18.06.00.001"]
[null,null,null,null,"Колыма до впадения Омолона","19.01.01.001"]
[null,null,null,null,"Колыма","19.01.01.002"]
[null,null,null,null,"Колыма","19.01.01.003"]
[null,null,null,null,"Колыма","19.01.01.004"]
[null,null,null,null,"Колыма","19.01.01.005"]
[null,null,null,null,"Омолон","19.01.02.001"]
[null,null,null,null,"Анюй","19.01.03.001"]
[null,null,null,null,"Колыма от впадения р. Омолон до устья без р. Анюй","19.01.04.001"]
[null,null,null,null,"Острова Восточно-Сибирского моря в пределах внутренних морских вод и территориального моря РФ, прилегающего к береговой линии гидрографической единицы","19.01.04.100"]
[null,null,null,null,"Бассейны рек Восточно-Сибирского моря восточнее Колымы","19.02.00.001"]
[null,null,null,null,"Острова Восточно-Сибирского моря в пределах внутренних морских вод и территориального моря РФ, прилегающего к береговой линии гидрографической единицы","19.02.00.100"]
[null,null,null,null,"Бассейны рек Чукотского моря","19.03.00.001"]
[null,null,null,null,"Острова Чукотского моря в пределах внутренних морских вод и территориального моря РФ, прилегающего к береговой линии гидрографической единицы 19.03.00","19.03.00.100"]
[null,null,null,null,"Бассейны рек Берингова моря (от Чукотки до Анадыря)","19.04.00.001"]
[null,null,null,null,"Острова Берингова моря в пределах внутренних морских вод и территориального моря РФ, прилегающего к береговой линии гидрографической единицы 19.04.00 ","19.04.00.100"]
[null,null,null,null,"Анадырь","19.05.00.001"]
[null,null,null,null,"Анадырь","19.05.00.002"]
[null,null,null,null,"Бассейны рек Берингова моря (южнее Анадыря)","19.06.00.001"]
[null,null,null,null,"Бассейны рек Берингова моря от северной границы бассейна р. Опука до южной границы бассейна р. Вывенка ","19.06.00.002"]
[null,null,null,null,"Бассейны рек Берингова моря от южной границы бассейна р. Вывенка до северной границы бассейна р.Камчатка","19.06.00.003"]
[null,null,null,null,"Острова Берингова моря в пределах внутренних морских вод и территориального моря РФ, прилегающего к береговой линии гидрографической единицы 19.06.00 ","19.06.00.100"]
[null,null,null,null,"Р. Камчатка","19.07.00.001"]
[null,null,null,null,"Бассейны рек Тихого океана п-ова Камчатка южнее юго-восточной границы бассейна р. Камчатка ","19.07.00.002"]
[null,null,null,null,"Острова Берингова моря в пределах внутренних морских вод и территориального моря РФ, прилегающего к береговой линии гидрографической единицы 19.07.00 ","19.07.00.100"]
[null,null,null,null,"Реки Камчатки бассейна Охотского моря (до Пенжины)","19.08.00.001"]
[null,null,null,null,"Бассейны рек Охотского моря п-ова Камчатка южнее южной границы бассейна р.Тигиль ","19.08.00.002"]
[null,null,null,null,"Пенжина","19.09.00.001"]
[null,null,null,null,"Бассейны рек Охотского моря от Пенжины до хр.Сунтар-Хаята","19.10.00.001"]
[null,null,null,null,"Бассейны рек Охотского моря от южной границы бассейна р. Тахтаяма до северо-восточной границы бассейна р. Иня ","19.10.00.002"]
[null,null,null,null,"Реки бассейна Охотского моря от северо-восточной границы бассейна р. Иня до северной границы бассейна р. Уда ","20.01.00.001"]
[null,null,null,null,"Уда","20.02.00.001"]
[null,null,null,null,"Ингода","20.03.01.001"]
[null,null,null,null,"Ингода","20.03.01.002"]
[null,null,null,null,"Онон","20.03.01.003"]
[null,null,null,null,"Шилка","20.03.01.004"]
[null,null,null,null,"Водные объекты бассейнов озер Барун-Торей и Зун-Торей в пределах границы РФ с Монголией и Китаем","20.03.01.200"]
[null,null,null,null,"Аргунь","20.03.02.001"]
[null,null,null,null,"Амур","20.03.03.001"]
[null,null,null,null,"Зея","20.03.04.001"]
[null,null,null,null,"Зея","20.03.04.002"]
[null,null,null,null,"Селемджа","20.03.04.003"]
[null,null,null,null,"Зея без р. Селемджа","20.03.04.004"]
[null,null,null,null,"Бурея","20.03.05.001"]
[null,null,null,null,"Амур без рр. Зея и Бурея до Бурейского г/у","20.03.05.002"]
[null,null,null,null,"Амур от впадения р. Бурея до г. Хабаровск без р. Уссури","20.03.06.001"]
[null,null,null,null,"Сунгача, вкл. бассейн оз. Ханка","20.03.07.001"]
[null,null,null,null,"Уссури без р. Сунгача","20.03.07.002"]
[null,null,null,null,"Большая Уссурка","20.03.07.003"]
[null,null,null,null,"Бикин","20.03.07.004"]
[null,null,null,null,"Хор","20.03.07.005"]
[null,null,null,null,"Уссури без р. Б.Уссурка, Бикин, Хор","20.03.07.006"]
[null,null,null,null,"Амгунь","20.03.08.001"]
[null,null,null,null,"Амур","20.03.09.001"]
[null,null,null,null,"Амур без р. Амгунь","20.03.09.002"]
[null,null,null,null,"Реки бассейна Охотского моря от границы бассейна р. Уда до мыса Лазарев без р. Амур","20.03.09.003"]
[null,null,null,null,"Водные объекты островов Охотского моря в пределах внутренних морских вод и территориального моря РФ, прилегающего к береговой линии гидрографической е","20.03.09.100"]
[null,null,null,null,"Водные объекты островов Японского моря в пределах внутренних морских вод и территориального моря РФ, прилегающего к береговой линии гидрографической е","20.04.00.100"]
[null,null,null,null,"Реки пролива Невельского и бассейна Японского моря от мыса Лазарева до северной границы бассейна р.Самарга ","20.04.00.001"]
[null,null,null,null,"Реки бассейна Японского моря от северной границы бассейна р.Самарга до восточной границы бассейна р. Партизанская","20.04.00.002"]
[null,null,null,null,"Реки бассейна Японского моря от восточной границы бассейна р. Партизанская до восточной границы бассейна р. Раздольная","20.04.00.003"]
[null,null,null,null,"Реки бассейна Японского моря от восточной границы бассейна р. Раздольная до р. Туманная (граница РФ с КНДР)","20.04.00.004"]
[null,null,null,null,"Сусуя","20.05.00.001"]
[null,null,null,null,"Водные объекты о-ва Сахалин бассейнов Охотского и Японского морей без бассейна р. Сусуя","20.05.00.002"]
[null,null,null,null,"Водные объекты Курильских островов бассейнов Охотского моря и Тихого океана","20.05.00.003"]